[Event "*** Titled Tuesday Blitz"]
[Site "Chess.com"]
[Date "2020.05.05"]
[Round "8"]
[White "ChessTraining77"]
[Black "TheBigBoss04"]
[Result "0-1"]
[WhiteElo "2542"]
[BlackElo "2716"]
[TimeControl "180+1"]
[EndTime "11:35:19 PDT"]
[Termination "TheBigBoss04 won by resignation"]

1. e4 {[%clk 0:03:00.9]} 1... g6 {[%clk 0:02:58.9]} 2. d4 {[%clk 0:03:00.2]}
2... Bg7 {[%clk 0:02:59.7]} 3. Nf3 {[%clk 0:03:00]} 3... d6 {[%clk 0:02:59.9]}
4. c3 {[%clk 0:03:00.2]} 4... Nf6 {[%clk 0:02:58.5]} 5. Bd3 {[%clk 0:03:00.1]}
5... O-O {[%clk 0:02:59.1]} 6. O-O {[%clk 0:02:59.8]} 6... Nc6 {[%clk
0:02:59.5]} 7. h3 {[%clk 0:02:59.2]} 7... e5 {[%clk 0:02:59.5]} 8. Re1 {[%clk
0:02:59.4]} 8... a6 {[%clk 0:02:58.2]} 9. a4 {[%clk 0:02:57.1]} 9... a5 {[%clk
0:02:57.4]} 10. Na3 {[%clk 0:02:55.7]} 10... Nd7 {[%clk 0:02:55.7]} 11. Nc2
{[%clk 0:02:54.6]} 11... exd4 {[%clk 0:02:48.4]} 12. cxd4 {[%clk 0:02:54]} 12...
Nb6 {[%clk 0:02:47]} 13. b3 {[%clk 0:02:45.2]} 13... Bd7 {[%clk 0:02:22.5]} 14.
Bb2 {[%clk 0:02:42.9]} 14... d5 {[%clk 0:02:20.1]} 15. e5 {[%clk 0:02:38.3]}
15... Be6 {[%clk 0:02:18]} 16. Ne3 {[%clk 0:02:16.9]} 16... Nb4 {[%clk
0:02:17.3]} 17. Bf1 {[%clk 0:02:13.3]} 17... c5 {[%clk 0:02:14.7]} 18. dxc5
{[%clk 0:02:06.2]} 18... Nd7 {[%clk 0:02:14.5]} 19. Ng4 {[%clk 0:02:06.1]} 19...
Bxg4 {[%clk 0:02:12.9]} 20. hxg4 {[%clk 0:02:05.7]} 20... Nxc5 {[%clk
0:02:13.2]} 21. Nd4 {[%clk 0:01:50.7]} 21... Rc8 {[%clk 0:02:05.1]} 22. Nb5
{[%clk 0:01:38.7]} 22... Ne4 {[%clk 0:01:56]} 23. g3 {[%clk 0:01:15.8]} 23...
Nc2 {[%clk 0:01:54.7]} 24. Bg2 {[%clk 0:01:10.2]} 24... Nxe1 {[%clk 0:01:44.8]}
25. Qxe1 {[%clk 0:01:09.8]} 25... Rc2 {[%clk 0:01:41.3]} 26. Bd4 {[%clk
0:01:07.4]} 26... Re8 {[%clk 0:01:35.8]} 27. Bxe4 {[%clk 0:01:05.8]} 27... dxe4
{[%clk 0:01:34.3]} 28. Qxe4 {[%clk 0:01:05.6]} 28... Rc6 {[%clk 0:01:32.6]} 29.
Re1 {[%clk 0:00:52.6]} 29... Qd7 {[%clk 0:01:28.8]} 30. Qf4 {[%clk 0:00:42.6]}
30... Rce6 {[%clk 0:01:20.1]} 31. Re3 {[%clk 0:00:39]} 31... Qc6 {[%clk
0:01:10.7]} 32. Nd6 {[%clk 0:00:37.8]} 32... Rf8 {[%clk 0:01:08.3]} 33. g5
{[%clk 0:00:35.9]} 33... Qd5 {[%clk 0:01:06.3]} 34. Kh2 {[%clk 0:00:33.7]} 34...
Rxd6 {[%clk 0:01:05.4]} 35. exd6 {[%clk 0:00:31]} 35... Qxd4 {[%clk 0:01:05.2]}
36. Qxd4 {[%clk 0:00:30.3]} 36... Bxd4 {[%clk 0:01:05.9]} 37. Re4 {[%clk
0:00:30.4]} 37... Bc5 {[%clk 0:01:05.1]} 38. d7 {[%clk 0:00:30.5]} 38... Bb6
{[%clk 0:00:50.4]} 39. Re8 {[%clk 0:00:30.3]} 39... Kg7 {[%clk 0:00:49.2]} 40.
f4 {[%clk 0:00:29.2]} 40... Bd8 {[%clk 0:00:44.7]} 41. Kg2 {[%clk 0:00:27.1]}
41... f6 {[%clk 0:00:45]} 42. gxf6+ {[%clk 0:00:26.2]} 42... Bxf6 {[%clk
0:00:44.6]} 43. Rc8 {[%clk 0:00:23.7]} 43... Bd8 {[%clk 0:00:37.7]} 44. Rc5
{[%clk 0:00:22.1]} 44... Kf7 {[%clk 0:00:37.3]} 45. Rb5 {[%clk 0:00:21.8]} 45...
b6 {[%clk 0:00:36.9]} 46. Re5 {[%clk 0:00:22.2]} 46... Bf6 {[%clk 0:00:34.3]}
0-1

[Event "*** Titled Tuesday Blitz"]
[Site "Chess.com"]
[Date "2020.05.05"]
[Round "8"]
[White "Gerasimenyuk_Miha"]
[Black "pollo2016"]
[Result "0-1"]
[WhiteElo "2347"]
[BlackElo "2575"]
[TimeControl "180+1"]
[EndTime "11:35:19 PDT"]
[Termination "pollo2016 won by resignation"]

1. d4 {[%clk 0:03:00.9]} 1... Nf6 {[%clk 0:02:52.8]} 2. Nf3 {[%clk 0:03:01.8]}
2... g6 {[%clk 0:02:50.5]} 3. Bg5 {[%clk 0:03:01.7]} 3... Bg7 {[%clk 0:02:49.8]}
4. Nbd2 {[%clk 0:03:01.8]} 4... O-O {[%clk 0:02:48.7]} 5. e3 {[%clk 0:03:01.9]}
5... d6 {[%clk 0:02:48.2]} 6. Bd3 {[%clk 0:03:01.5]} 6... Nbd7 {[%clk
0:02:47.6]} 7. h4 {[%clk 0:03:01.4]} 7... h6 {[%clk 0:02:44.6]} 8. h5 {[%clk
0:03:01.6]} 8... Nxh5 {[%clk 0:02:30.3]} 9. Bxh6 {[%clk 0:02:59.9]} 9... Bxh6
{[%clk 0:02:28.6]} 10. g4 {[%clk 0:02:59.4]} 10... Ndf6 {[%clk 0:02:10.1]} 11.
gxh5 {[%clk 0:02:50.8]} 11... g5 {[%clk 0:02:10]} 12. Qe2 {[%clk 0:02:39]} 12...
Kh8 {[%clk 0:02:08.9]} 13. O-O-O {[%clk 0:02:37.7]} 13... Rg8 {[%clk 0:01:55.6]}
14. Rdg1 {[%clk 0:02:37.3]} 14... c5 {[%clk 0:01:46.8]} 15. e4 {[%clk
0:02:31.9]} 15... cxd4 {[%clk 0:01:38.1]} 16. e5 {[%clk 0:02:30.8]} 16... Nh7
{[%clk 0:01:25]} 17. Qe4 {[%clk 0:02:23.8]} 17... Nf8 {[%clk 0:01:24.2]} 18.
Nxg5 {[%clk 0:02:10.7]} 18... Rxg5 {[%clk 0:01:18.4]} 19. Rxg5 {[%clk
0:02:07.6]} 19... Bxg5 {[%clk 0:01:18.7]} 20. f4 {[%clk 0:02:06.6]} 20... Bh6
{[%clk 0:01:17.7]} 21. Qxd4 {[%clk 0:01:56.7]} 21... Be6 {[%clk 0:01:09.3]} 22.
Rg1 {[%clk 0:01:29.7]} 22... dxe5 {[%clk 0:01:05.7]} 23. Qxe5+ {[%clk
0:01:26.1]} 23... f6 {[%clk 0:01:05.3]} 24. Qe4 {[%clk 0:01:09.8]} 24... Qd5
{[%clk 0:01:05]} 25. Qe3 {[%clk 0:01:04]} 25... Rc8 {[%clk 0:00:58.4]} 26. Nb3
{[%clk 0:00:56.1]} 26... a5 {[%clk 0:00:56.3]} 27. Nd4 {[%clk 0:00:52.9]} 27...
Qe5 {[%clk 0:00:47.1]} 28. Qxe5 {[%clk 0:00:41.3]} 28... fxe5 {[%clk 0:00:47.3]}
29. Nxe6 {[%clk 0:00:39.6]} 29... Nxe6 {[%clk 0:00:47.5]} 30. Rg6 {[%clk
0:00:39.5]} 30... Bxf4+ {[%clk 0:00:46]} 31. Kd1 {[%clk 0:00:39]} 31... Nc5
{[%clk 0:00:44.4]} 32. Bf5 {[%clk 0:00:38]} 32... Rd8+ {[%clk 0:00:43.6]} 33.
Ke2 {[%clk 0:00:37.9]} 33... e4 {[%clk 0:00:42.8]} 34. h6 {[%clk 0:00:36.4]}
34... Rd6 {[%clk 0:00:41.6]} 35. Rg7 {[%clk 0:00:35.6]} 35... Bxh6 {[%clk
0:00:37.9]} 36. Rxe7 {[%clk 0:00:34.6]} 36... e3 {[%clk 0:00:37.9]} 37. c3
{[%clk 0:00:30.6]} 37... Rd2+ {[%clk 0:00:37.2]} 38. Ke1 {[%clk 0:00:29.4]}
38... Bg5 {[%clk 0:00:36.5]} 39. Rc7 {[%clk 0:00:26]} 39... Nd3+ {[%clk
0:00:34.9]} 40. Bxd3 {[%clk 0:00:24]} 40... Rxd3 {[%clk 0:00:35.8]} 41. Ke2
{[%clk 0:00:22.9]} 41... Rd2+ {[%clk 0:00:35.6]} 42. Kf3 {[%clk 0:00:23.2]}
42... Rf2+ {[%clk 0:00:35.3]} 0-1

[Event "*** Titled Tuesday Blitz"]
[Site "Chess.com"]
[Date "2020.05.05"]
[Round "8"]
[White "manmanlai1"]
[Black "hazy13"]
[Result "1-0"]
[WhiteElo "2338"]
[BlackElo "2187"]
[TimeControl "180+1"]
[EndTime "11:35:20 PDT"]
[Termination "manmanlai1 won on time"]

1. e4 {[%clk 0:03:00.9]} 1... c5 {[%clk 0:03:00]} 2. Nf3 {[%clk 0:03:01]} 2...
g6 {[%clk 0:03:00.3]} 3. Bc4 {[%clk 0:02:53.5]} 3... Nc6 {[%clk 0:02:54.5]} 4.
O-O {[%clk 0:02:52.8]} 4... Bg7 {[%clk 0:02:54.4]} 5. c3 {[%clk 0:02:52.7]} 5...
e6 {[%clk 0:02:53.7]} 6. d4 {[%clk 0:02:44.6]} 6... cxd4 {[%clk 0:02:50.7]} 7.
cxd4 {[%clk 0:02:45.5]} 7... d5 {[%clk 0:02:50.6]} 8. exd5 {[%clk 0:02:46]} 8...
exd5 {[%clk 0:02:51.1]} 9. Bb3 {[%clk 0:02:46]} 9... Nge7 {[%clk 0:02:36.6]} 10.
h3 {[%clk 0:02:45.8]} 10... h6 {[%clk 0:02:33.5]} 11. Nc3 {[%clk 0:02:45.3]}
11... O-O {[%clk 0:02:32.8]} 12. Bf4 {[%clk 0:02:44.4]} 12... Be6 {[%clk
0:02:30.6]} 13. Ne5 {[%clk 0:02:39.6]} 13... Rc8 {[%clk 0:02:23]} 14. Re1 {[%clk
0:02:38.8]} 14... Nf5 {[%clk 0:02:15]} 15. Nxc6 {[%clk 0:02:28.1]} 15... Rxc6
{[%clk 0:02:07.4]} 16. Be5 {[%clk 0:02:28.3]} 16... Qg5 {[%clk 0:01:50.8]} 17.
Bxd5 {[%clk 0:01:48.4]} 17... Rxc3 {[%clk 0:01:38.6]} 18. Bxe6 {[%clk
0:01:47.4]} 18... Rxh3 {[%clk 0:01:37.6]} 19. Bxf5 {[%clk 0:01:46.3]} 19... gxf5
{[%clk 0:01:38.5]} 20. Qc1 {[%clk 0:01:31.3]} 20... Rd3 {[%clk 0:01:25.9]} 21.
Qc4 {[%clk 0:01:10.4]} 21... Rd2 {[%clk 0:01:12.6]} 22. Re2 {[%clk 0:01:10.4]}
22... Bxe5 {[%clk 0:00:48.9]} 23. dxe5 {[%clk 0:01:09.4]} 23... Re8 {[%clk
0:00:33.2]} 24. Rae1 {[%clk 0:01:06.9]} 24... Rxe2 {[%clk 0:00:28]} 25. Qxe2
{[%clk 0:00:58.2]} 25... f4 {[%clk 0:00:26.2]} 26. Qe4 {[%clk 0:00:56.5]} 26...
h5 {[%clk 0:00:24.7]} 27. Qxb7 {[%clk 0:00:54]} 27... h4 {[%clk 0:00:23.5]} 28.
Kh2 {[%clk 0:00:51.6]} 28... Re6 {[%clk 0:00:18]} 29. Qxa7 {[%clk 0:00:42.1]}
29... Kg7 {[%clk 0:00:12.3]} 30. Qa3 {[%clk 0:00:35.1]} 30... Rg6 {[%clk
0:00:09.6]} 31. Qf3 {[%clk 0:00:33.1]} 31... Qf5 {[%clk 0:00:07.6]} 32. a4
{[%clk 0:00:28.3]} 32... Rh6 {[%clk 0:00:04.7]} 33. a5 {[%clk 0:00:23]} 33...
Ra6 {[%clk 0:00:02.7]} 34. b4 {[%clk 0:00:22]} 1-0

[Event "*** Titled Tuesday Blitz"]
[Site "Chess.com"]
[Date "2020.05.05"]
[Round "8"]
[White "Happy1712Drummer"]
[Black "ljuks68"]
[Result "0-1"]
[WhiteElo "2515"]
[BlackElo "2389"]
[TimeControl "180+1"]
[EndTime "11:35:22 PDT"]
[Termination "ljuks68 won on time"]

1. Nf3 {[%clk 0:03:00.1]} 1... d5 {[%clk 0:02:49.6]} 2. d4 {[%clk 0:02:59.1]}
2... Nf6 {[%clk 0:02:48.6]} 3. c4 {[%clk 0:02:59.2]} 3... c6 {[%clk 0:02:48.5]}
4. Nc3 {[%clk 0:02:56.6]} 4... dxc4 {[%clk 0:02:47.3]} 5. a4 {[%clk 0:02:55.2]}
5... Bf5 {[%clk 0:02:47]} 6. Ne5 {[%clk 0:02:54.1]} 6... Na6 {[%clk 0:02:47.1]}
7. f3 {[%clk 0:02:52.1]} 7... Nd7 {[%clk 0:02:45.9]} 8. Nxc4 {[%clk 0:02:22.1]}
8... e5 {[%clk 0:02:45.2]} 9. e4 {[%clk 0:02:20.1]} 9... exd4 {[%clk 0:02:44.4]}
10. exf5 {[%clk 0:02:08]} 10... dxc3 {[%clk 0:02:43.7]} 11. bxc3 {[%clk
0:02:06.7]} 11... Qf6 {[%clk 0:02:27.3]} 12. Qc2 {[%clk 0:01:24.8]} 12... O-O-O
{[%clk 0:02:08.5]} 13. Be3 {[%clk 0:01:20.4]} 13... Bc5 {[%clk 0:02:06.6]} 14.
O-O-O {[%clk 0:01:12.6]} 14... Rhe8 {[%clk 0:02:01.3]} 15. Bf4 {[%clk 0:01:07]}
15... Nb6 {[%clk 0:01:44.6]} 16. Nxb6+ {[%clk 0:01:02.3]} 16... axb6 {[%clk
0:01:43]} 17. Bxa6 {[%clk 0:00:52.8]} 17... bxa6 {[%clk 0:01:41.8]} 18. Rxd8+
{[%clk 0:00:51.7]} 18... Rxd8 {[%clk 0:01:40.9]} 19. Rd1 {[%clk 0:00:50.1]}
19... Rxd1+ {[%clk 0:01:38.3]} 20. Kxd1 {[%clk 0:00:51]} 20... Qd8+ {[%clk
0:01:26.3]} 21. Ke2 {[%clk 0:00:48.9]} 21... Qd5 {[%clk 0:01:21.3]} 22. Qe4
{[%clk 0:00:39.8]} 22... Qxe4+ {[%clk 0:01:20.7]} 23. fxe4 {[%clk 0:00:40.7]}
23... b5 {[%clk 0:01:10.7]} 24. axb5 {[%clk 0:00:36.7]} 24... cxb5 {[%clk
0:01:10.4]} 25. Kd3 {[%clk 0:00:35.9]} 25... a5 {[%clk 0:01:05.4]} 26. e5 {[%clk
0:00:35.7]} 26... Kd7 {[%clk 0:01:02.5]} 27. g4 {[%clk 0:00:34.1]} 27... g6
{[%clk 0:00:55.6]} 28. Kc2 {[%clk 0:00:32.2]} 28... a4 {[%clk 0:00:53.8]} 29.
Kb2 {[%clk 0:00:29.1]} 29... Kc6 {[%clk 0:00:48.4]} 30. h4 {[%clk 0:00:22.9]}
30... Kd5 {[%clk 0:00:45.9]} 31. e6 {[%clk 0:00:17.9]} 31... gxf5 {[%clk
0:00:34.3]} 32. exf7 {[%clk 0:00:15.9]} 32... fxg4 {[%clk 0:00:29.9]} 33. Be3
{[%clk 0:00:03.5]} 33... Bf8 {[%clk 0:00:28.6]} 34. c4+ {[%clk 0:00:02.1]} 34...
Kxc4 {[%clk 0:00:27.2]} 0-1

[Event "*** Titled Tuesday Blitz"]
[Site "Chess.com"]
[Date "2020.05.05"]
[Round "8"]
[White "TERMINATOR_PC"]
[Black "EvgenyRomanov"]
[Result "0-1"]
[WhiteElo "2462"]
[BlackElo "2643"]
[TimeControl "180+1"]
[EndTime "11:35:23 PDT"]
[Termination "EvgenyRomanov won on time"]

1. e4 {[%clk 0:03:00.9]} 1... c5 {[%clk 0:02:58.2]} 2. Nc3 {[%clk 0:03:01]} 2...
Nc6 {[%clk 0:02:57.1]} 3. g3 {[%clk 0:03:01.5]} 3... g6 {[%clk 0:02:56.5]} 4.
Bg2 {[%clk 0:03:01.9]} 4... Bg7 {[%clk 0:02:56.9]} 5. d3 {[%clk 0:03:02.8]} 5...
d6 {[%clk 0:02:56.9]} 6. Be3 {[%clk 0:03:03]} 6... e5 {[%clk 0:02:56.8]} 7. Nh3
{[%clk 0:03:02.9]} 7... Nge7 {[%clk 0:02:55.7]} 8. O-O {[%clk 0:03:03.4]} 8...
Nd4 {[%clk 0:02:52.1]} 9. f4 {[%clk 0:03:03.2]} 9... exf4 {[%clk 0:02:52]} 10.
Nxf4 {[%clk 0:03:04.1]} 10... O-O {[%clk 0:02:50.8]} 11. Qd2 {[%clk 0:03:04.4]}
11... h6 {[%clk 0:02:39.2]} 12. Nfd5 {[%clk 0:02:39.6]} 12... Nxd5 {[%clk
0:02:38.5]} 13. Nxd5 {[%clk 0:02:40.5]} 13... Kh7 {[%clk 0:02:38.7]} 14. c3
{[%clk 0:02:39.4]} 14... Nc6 {[%clk 0:02:36.9]} 15. Rf2 {[%clk 0:02:16.2]} 15...
Ne5 {[%clk 0:02:28.8]} 16. h3 {[%clk 0:02:09.7]} 16... Be6 {[%clk 0:02:20.5]}
17. Nf4 {[%clk 0:02:06.5]} 17... Bd7 {[%clk 0:02:15.3]} 18. b3 {[%clk
0:01:59.6]} 18... Rc8 {[%clk 0:02:03.9]} 19. d4 {[%clk 0:01:55.1]} 19... cxd4
{[%clk 0:02:03.3]} 20. cxd4 {[%clk 0:01:56]} 20... Nc6 {[%clk 0:02:02.6]} 21.
Raf1 {[%clk 0:01:46.4]} 21... Ne7 {[%clk 0:01:53.2]} 22. g4 {[%clk 0:01:29.7]}
22... Bb5 {[%clk 0:01:52]} 23. Nd3 {[%clk 0:01:25.9]} 23... Kg8 {[%clk
0:01:41.5]} 24. Rd1 {[%clk 0:01:23.3]} 24... Bxd3 {[%clk 0:01:33.9]} 25. Qxd3
{[%clk 0:01:24.2]} 25... Qa5 {[%clk 0:01:33.3]} 26. Bf4 {[%clk 0:00:39.5]} 26...
Nc6 {[%clk 0:01:28.8]} 27. Qd2 {[%clk 0:00:18.6]} 27... Bxd4 {[%clk 0:01:23.9]}
28. Qxa5 {[%clk 0:00:15.6]} 28... Bxf2+ {[%clk 0:01:23.5]} 29. Kxf2 {[%clk
0:00:16.5]} 29... Nxa5 {[%clk 0:01:23.9]} 30. Bxd6 {[%clk 0:00:17.4]} 30... Rc2+
{[%clk 0:01:20.4]} 31. Kf1 {[%clk 0:00:13.2]} 31... Rd8 {[%clk 0:01:20.5]} 32.
e5 {[%clk 0:00:12.6]} 32... Nc6 {[%clk 0:01:19.4]} 33. Bd5 {[%clk 0:00:06.4]}
33... Rxa2 {[%clk 0:01:14.2]} 34. b4 {[%clk 0:00:03]} 34... Rc2 {[%clk
0:00:54.2]} 35. Bb3 {[%clk 0:00:02.7]} 35... Rb2 {[%clk 0:00:51.2]} 36. Bd5
{[%clk 0:00:01]} 36... Nxb4 {[%clk 0:00:43.1]} 37. Bc4 {[%clk 0:00:01.5]} 37...
Nc6 {[%clk 0:00:41.3]} 38. Ra1 {[%clk 0:00:01.2]} 38... Re8 {[%clk 0:00:37.7]}
0-1

[Event "*** Titled Tuesday Blitz"]
[Site "Chess.com"]
[Date "2020.05.05"]
[Round "8"]
[White "Gromes7"]
[Black "tan275"]
[Result "1/2-1/2"]
[WhiteElo "2106"]
[BlackElo "2176"]
[TimeControl "180+1"]
[EndTime "11:35:23 PDT"]
[Termination "Game drawn by repetition"]

1. d4 {[%clk 0:03:00.9]} 1... d5 {[%clk 0:02:58.5]} 2. Nf3 {[%clk 0:03:00]} 2...
e6 {[%clk 0:02:58.7]} 3. g3 {[%clk 0:03:00.3]} 3... c5 {[%clk 0:02:57.3]} 4. Bg2
{[%clk 0:03:00.6]} 4... Nf6 {[%clk 0:02:56.8]} 5. O-O {[%clk 0:03:01.5]} 5...
Nc6 {[%clk 0:02:56.5]} 6. c4 {[%clk 0:03:01.5]} 6... dxc4 {[%clk 0:02:56.1]} 7.
Qa4 {[%clk 0:02:54.8]} 7... cxd4 {[%clk 0:02:50.7]} 8. Nxd4 {[%clk 0:02:54.2]}
8... Bd7 {[%clk 0:02:14.7]} 9. Nxc6 {[%clk 0:02:52]} 9... bxc6 {[%clk 0:02:02]}
10. Bxc6 {[%clk 0:02:45.6]} 10... Rc8 {[%clk 0:02:02.3]} 11. Bxd7+ {[%clk
0:02:40.9]} 11... Qxd7 {[%clk 0:02:03.2]} 12. Qc2 {[%clk 0:02:30.7]} 12... Be7
{[%clk 0:01:57]} 13. Nc3 {[%clk 0:02:28.9]} 13... O-O {[%clk 0:01:56.4]} 14. Rd1
{[%clk 0:02:27.8]} 14... Qb7 {[%clk 0:01:55.7]} 15. Bg5 {[%clk 0:02:19.4]} 15...
h6 {[%clk 0:01:52.8]} 16. Bxf6 {[%clk 0:02:18.3]} 16... Bxf6 {[%clk 0:01:52.8]}
17. Rd2 {[%clk 0:02:06.9]} 17... Rb8 {[%clk 0:01:47.2]} 18. Rad1 {[%clk
0:02:03]} 18... Qb4 {[%clk 0:01:39.3]} 19. Ne4 {[%clk 0:01:38.8]} 19... Bxb2
{[%clk 0:01:36]} 20. Rb1 {[%clk 0:01:30.9]} 20... c3 {[%clk 0:01:34.4]} 21. Rd7
{[%clk 0:01:13.7]} 21... Qa3 {[%clk 0:01:29]} 22. h4 {[%clk 0:00:56.6]} 22... a5
{[%clk 0:01:07.4]} 23. g4 {[%clk 0:00:41.2]} 23... Rfd8 {[%clk 0:00:56.3]} 24.
Rxd8+ {[%clk 0:00:31.7]} 24... Rxd8 {[%clk 0:00:57.2]} 25. g5 {[%clk 0:00:32.6]}
25... hxg5 {[%clk 0:00:54]} 26. Nxg5 {[%clk 0:00:25.1]} 26... g6 {[%clk
0:00:53.3]} 27. h5 {[%clk 0:00:24.3]} 27... Qc5 {[%clk 0:00:50.3]} 28. Nxf7
{[%clk 0:00:19.7]} 28... Kxf7 {[%clk 0:00:47.7]} 29. Qxg6+ {[%clk 0:00:19.4]}
29... Ke7 {[%clk 0:00:45.9]} 30. Qg7+ {[%clk 0:00:19.6]} 30... Ke8 {[%clk
0:00:37.4]} 31. Qg6+ {[%clk 0:00:17.7]} 31... Ke7 {[%clk 0:00:23.2]} 32. Qg7+
{[%clk 0:00:17.8]} 32... Ke8 {[%clk 0:00:23.4]} 33. Qg6+ {[%clk 0:00:17.5]}
33... Kf8 {[%clk 0:00:20.2]} 34. Qf6+ {[%clk 0:00:16.5]} 34... Ke8 {[%clk
0:00:19.8]} 35. Qg6+ {[%clk 0:00:13.8]} 1/2-1/2

[Event "*** Titled Tuesday Blitz"]
[Site "Chess.com"]
[Date "2020.05.05"]
[Round "8"]
[White "vangulio"]
[Black "SharapovEvgeny"]
[Result "1-0"]
[WhiteElo "2557"]
[BlackElo "2373"]
[TimeControl "180+1"]
[EndTime "11:35:25 PDT"]
[Termination "vangulio won by resignation"]

1. e4 {[%clk 0:02:37.6]} 1... c5 {[%clk 0:02:58]} 2. Nf3 {[%clk 0:02:37]} 2...
d6 {[%clk 0:02:57.2]} 3. d4 {[%clk 0:02:36.7]} 3... cxd4 {[%clk 0:02:57]} 4.
Nxd4 {[%clk 0:02:37.1]} 4... Nf6 {[%clk 0:02:56.4]} 5. Nc3 {[%clk 0:02:37.4]}
5... Nc6 {[%clk 0:02:56.1]} 6. f3 {[%clk 0:02:35]} 6... e5 {[%clk 0:02:51.7]} 7.
Nb3 {[%clk 0:02:34.3]} 7... Be7 {[%clk 0:02:50.8]} 8. Be3 {[%clk 0:02:32.9]}
8... O-O {[%clk 0:02:50.4]} 9. Qd2 {[%clk 0:02:31.1]} 9... a5 {[%clk 0:02:50.1]}
10. a4 {[%clk 0:02:28.6]} 10... Nb4 {[%clk 0:02:48.6]} 11. O-O-O {[%clk
0:02:25.6]} 11... Be6 {[%clk 0:02:46.9]} 12. Kb1 {[%clk 0:02:25]} 12... Rc8
{[%clk 0:02:42.3]} 13. g4 {[%clk 0:02:23]} 13... d5 {[%clk 0:02:41.8]} 14. g5
{[%clk 0:02:21.1]} 14... Nd7 {[%clk 0:02:24.2]} 15. Nxd5 {[%clk 0:02:15.7]}
15... Bxd5 {[%clk 0:02:22.3]} 16. exd5 {[%clk 0:02:14.5]} 16... Rxc2 {[%clk
0:02:20.9]} 17. Qe1 {[%clk 0:02:11.8]} 17... Bxg5 {[%clk 0:02:16.6]} 18. Bxg5
{[%clk 0:02:05.2]} 18... Qxg5 {[%clk 0:02:14.8]} 19. Nxa5 {[%clk 0:02:05.2]}
19... Qf4 {[%clk 0:02:03.6]} 20. Bd3 {[%clk 0:01:29.2]} 20... Nxd3 {[%clk
0:02:00]} 21. Rxd3 {[%clk 0:01:22.6]} 21... Rfc8 {[%clk 0:01:52.5]} 22. Qe4
{[%clk 0:01:15.5]} 22... Rc1+ {[%clk 0:01:27.3]} 23. Rxc1 {[%clk 0:01:12.8]}
23... Qxc1+ {[%clk 0:01:26.4]} 24. Ka2 {[%clk 0:01:12.1]} 24... Nc5 {[%clk
0:01:25.8]} 25. Qe3 {[%clk 0:00:57.5]} 25... Nxd3 {[%clk 0:01:23.3]} 26. Qxd3
{[%clk 0:00:58.4]} 26... Qc5 {[%clk 0:01:08.5]} 27. Nxb7 {[%clk 0:00:55.3]}
27... Qc4+ {[%clk 0:01:06.4]} 28. Qxc4 {[%clk 0:00:54.5]} 28... Rxc4 {[%clk
0:01:05.9]} 29. b3 {[%clk 0:00:48.3]} 29... Rc7 {[%clk 0:01:03.4]} 30. Na5
{[%clk 0:00:47]} 30... f5 {[%clk 0:01:01.1]} 31. Nc6 {[%clk 0:00:43.6]} 31... e4
{[%clk 0:00:59.8]} 32. fxe4 {[%clk 0:00:39.9]} 32... fxe4 {[%clk 0:00:59.8]} 33.
a5 {[%clk 0:00:35.7]} 33... e3 {[%clk 0:00:58.6]} 34. Nd4 {[%clk 0:00:33.9]}
34... Rd7 {[%clk 0:00:57.8]} 35. b4 {[%clk 0:00:27.4]} 35... Rxd5 {[%clk
0:00:56.5]} 36. Nf3 {[%clk 0:00:27.8]} 36... e2 {[%clk 0:00:55.9]} 37. a6 {[%clk
0:00:26.7]} 37... Kf7 {[%clk 0:00:34.3]} 38. a7 {[%clk 0:00:23.6]} 38... Rd8
{[%clk 0:00:32.9]} 39. b5 {[%clk 0:00:22.7]} 39... Ra8 {[%clk 0:00:32.2]} 40. b6
{[%clk 0:00:21.8]} 40... Ke6 {[%clk 0:00:29.8]} 41. Kb3 {[%clk 0:00:19.9]} 41...
Kd7 {[%clk 0:00:28.5]} 42. b7 {[%clk 0:00:19.6]} 42... Rxa7 {[%clk 0:00:28.5]}
43. b8=Q {[%clk 0:00:19.4]} 43... Rc7 {[%clk 0:00:27.5]} 44. Qb5+ {[%clk
0:00:18.8]} 1-0

[Event "*** Titled Tuesday Blitz"]
[Site "Chess.com"]
[Date "2020.05.05"]
[Round "8"]
[White "Yaacovn"]
[Black "anon132639"]
[Result "1-0"]
[WhiteElo "2856"]
[BlackElo "2641"]
[TimeControl "180+1"]
[EndTime "11:35:27 PDT"]
[Termination "Yaacovn won by resignation"]

1. d4 {[%clk 0:03:00.9]} 1... Nf6 {[%clk 0:02:57.5]} 2. Nf3 {[%clk 0:03:00.2]}
2... g6 {[%clk 0:02:58.1]} 3. e3 {[%clk 0:02:50.6]} 3... Bg7 {[%clk 0:02:57]} 4.
Be2 {[%clk 0:02:49.6]} 4... O-O {[%clk 0:02:57.4]} 5. O-O {[%clk 0:02:48.3]}
5... d6 {[%clk 0:02:58.3]} 6. b3 {[%clk 0:02:47.8]} 6... e5 {[%clk 0:02:49.9]}
7. dxe5 {[%clk 0:02:47.2]} 7... Ng4 {[%clk 0:02:50.1]} 8. Bb2 {[%clk 0:02:45.8]}
8... Nc6 {[%clk 0:02:50.6]} 9. c4 {[%clk 0:02:46]} 9... Ngxe5 {[%clk 0:02:50.8]}
10. Nxe5 {[%clk 0:02:46.5]} 10... dxe5 {[%clk 0:02:51]} 11. Qc1 {[%clk
0:02:46.4]} 11... Be6 {[%clk 0:02:48.1]} 12. Rd1 {[%clk 0:02:45.7]} 12... Qg5
{[%clk 0:02:37.6]} 13. Bf3 {[%clk 0:02:44]} 13... Rad8 {[%clk 0:02:25.2]} 14.
Nc3 {[%clk 0:02:41]} 14... f5 {[%clk 0:02:18.7]} 15. Bxc6 {[%clk 0:02:38]} 15...
bxc6 {[%clk 0:02:17.5]} 16. Rxd8 {[%clk 0:02:34.3]} 16... Rxd8 {[%clk
0:02:17.3]} 17. Qe1 {[%clk 0:02:33]} 17... e4 {[%clk 0:01:44.6]} 18. Rd1 {[%clk
0:02:31.2]} 18... Re8 {[%clk 0:01:36.5]} 19. Qd2 {[%clk 0:02:25.9]} 19... Be5
{[%clk 0:01:32.7]} 20. Ne2 {[%clk 0:02:24.5]} 20... Qf6 {[%clk 0:01:24.2]} 21.
Bxe5 {[%clk 0:02:22.8]} 21... Qxe5 {[%clk 0:01:25.1]} 22. h4 {[%clk 0:02:21.1]}
22... Bf7 {[%clk 0:01:13.5]} 23. Qd4 {[%clk 0:02:18.8]} 23... Qxd4 {[%clk
0:01:06.1]} 24. Rxd4 {[%clk 0:02:16.4]} 24... Be6 {[%clk 0:01:03.7]} 25. Nc3
{[%clk 0:02:16]} 25... Kf7 {[%clk 0:01:03.8]} 26. Kh2 {[%clk 0:02:15.7]} 26...
Kf6 {[%clk 0:01:02.7]} 27. Kg3 {[%clk 0:02:15.7]} 27... h6 {[%clk 0:01:00.6]}
28. Na4 {[%clk 0:02:14.8]} 28... g5 {[%clk 0:00:52.5]} 29. hxg5+ {[%clk
0:02:14.3]} 29... hxg5 {[%clk 0:00:53.4]} 30. Nc5 {[%clk 0:02:12.8]} 30... Bc8
{[%clk 0:00:53.7]} 31. Rd1 {[%clk 0:02:02.3]} 31... Rh8 {[%clk 0:00:52.8]} 32.
f3 {[%clk 0:01:21.8]} 32... exf3 {[%clk 0:00:46.9]} 33. Kxf3 {[%clk 0:01:20]}
33... Ke5 {[%clk 0:00:38.2]} 34. Kf2 {[%clk 0:01:18.1]} 34... a5 {[%clk
0:00:25.2]} 35. a4 {[%clk 0:01:07.4]} 35... Be6 {[%clk 0:00:19.8]} 36. Nb7
{[%clk 0:00:59.5]} 36... f4 {[%clk 0:00:11.1]} 37. Nxa5 {[%clk 0:00:57]} 37...
fxe3+ {[%clk 0:00:10.8]} 38. Kxe3 {[%clk 0:00:57.3]} 38... c5 {[%clk 0:00:08.2]}
39. Nb7 {[%clk 0:00:51.3]} 39... Rh2 {[%clk 0:00:07.2]} 40. Rd2 {[%clk
0:00:48.7]} 40... Bc8 {[%clk 0:00:05.9]} 41. Nxc5 {[%clk 0:00:48.8]} 41... g4
{[%clk 0:00:05.4]} 42. a5 {[%clk 0:00:47.3]} 42... Rh1 {[%clk 0:00:05.1]} 43.
Ra2 {[%clk 0:00:45.9]} 43... g3 {[%clk 0:00:05]} 44. a6 {[%clk 0:00:45.2]} 44...
Re1+ {[%clk 0:00:03.8]} 45. Kf3 {[%clk 0:00:44]} 45... Kd4 {[%clk 0:00:03.4]}
46. a7 {[%clk 0:00:42]} 46... Re3+ {[%clk 0:00:03.9]} 47. Kf4 {[%clk 0:00:41.1]}
1-0